bitfinex-derivatives/quotes_ETHF0:USTF0_20250616
["timestamp","ask_amount","ask_price","bid_price","bid_amount"]
[1750077732849,0.76427,2616.7,2616.6,3.639907]
[1750077733457,3.2078,2616.8,2616.7,0.76427]
[1750077733755,27.54904,2616.8,2616.7,6.27281969]
[1750077734957,3.97204,2616.8,2616.7,6.27281969]
[1750077735156,27.54804,2616.8,2616.7,6.27281969]
[1750077735653,27.54804,2616.8,2616.7,6.94481969]
[1750077737556,27.54804,2616.8,2616.7,6.18054969]
[1750077738056,27.54704,2616.8,2616.7,6.18054969]
[1750077738657,27.54604,2616.8,2616.7,6.18054969]
[1750077738857,27.54604,2616.8,2616.7,6.94481969]
[1750077739157,27.54604,2616.8,2616.7,6.18054969]
[1750077739657,27.54604,2616.8,2616.7,6.94481969]
[1750077740251,27.54604,2616.8,2616.7,6.18054969]
[1750077740458,27.54604,2616.8,2616.7,1.52750078]
[1750077741157,27.54604,2616.8,2616.7,1.59487484]
[1750077742955,27.54604,2616.8,2616.7,0.06737406]
[1750077744856,27.54604,2616.8,2616.7,0.83164406]
[1750077745161,27.54604,2616.8,2616.7,2.70012297]
[1750077745864,24.33524,2616.8,2616.7,3.46439297]
[1750077746062,24.33524,2616.8,2616.7,6.31049375]
[1750077746260,0.7642,2617.1,2617.0,0.76419]
[1750077746448,0.7642,2617.1,2617.0,3.39693891]
[1750077746652,0.7642,2617.1,2617.0,11.32356271]
[1750077747256,0.7642,2617.1,2617.0,12.64216271]
[1750077747457,0.7642,2617.1,2617.0,11.87797271]
[1750077747957,0.7642,2617.1,2617.0,12.64216271]
[1750077749060,0.7642,2617.1,2617.0,11.87797271]
[1750077749362,0.76419,2617.0,2616.9,2.9575338]
[1750077750661,0.76417,2617.1,2617.0,0.76414]
[1750077750857,24.33217,2617.1,2617.0,3.39688891]
[1750077751057,24.33217,2617.1,2617.0,4.65618891]
[1750077751356,0.76417,2617.1,2617.0,4.65618891]
[1750077751560,24.33217,2617.1,2617.0,4.65618891]
[1750077751962,24.33217,2617.1,2617.0,3.89204891]
[1750077752163,24.33217,2617.1,2616.9,2.9575238]
[1750077752164,0.76421,2616.9,2616.8,1.5266238]
[1750077752850,0.76424,2616.8,2616.7,2.35826786]
[1750077753055,0.76423,2616.9,2616.8,0.76421]
[1750077753251,24.33119,2617.0,2616.9,0.76421]
[1750077753455,24.33119,2617.0,2616.9,5.54079827]
[1750077753859,8.75783,2617.2,2617.0,0.76416]
[1750077753860,0.76417,2617.1,2617.0,0.76416]
[1750077754061,0.76415,2617.2,2617.1,0.76412]
[1750077754260,0.76415,2617.2,2617.1,3.39686891]
[1750077754455,24.33115,2617.2,2617.1,3.39686891]
[1750077754655,24.33115,2617.2,2617.1,4.65806891]
[1750077755853,24.33115,2617.2,2617.1,2.02532]
[1750077756165,0.76415,2617.2,2617.1,0.76412]
[1750077756458,24.33115,2617.2,2617.1,2.02532]
[1750077756869,24.33015,2617.2,2617.1,2.02532]
[1750077757253,0.76415,2617.2,2617.1,2.02532]
[1750077757461,6.93608,2617.4,2617.3,0.7641]
[1750077757667,30.50208,2617.4,2617.3,3.39684891]
[1750077757966,0.76408,2617.4,2617.3,3.39684891]
[1750077758161,24.32908,2617.4,2617.3,3.39684891]
[1750077758765,24.32908,2617.4,2617.3,4.67404891]
[1750077759862,3.2078,2617.7,2617.3,3.90994891]
[1750077760062,0.764,2617.7,2617.6,0.76398]
[1750077760359,6.92997,2617.8,2617.7,0.76398]
[1750077760566,0.76397,2617.8,2617.7,3.39672891]
[1750077760868,0.6149,2617.9,2617.8,0.76395]
[1750077760869,1.37884,2617.9,2617.8,0.76395]
[1750077761058,3.97171,2618.0,2617.9,0.76392]
[1750077761260,27.53471,2618.0,2617.9,3.39666891]
[1750077761766,3.97171,2618.0,2617.9,3.39666891]
[1750077761962,27.53471,2618.0,2617.9,3.39666891]
[1750077763162,3.8227,2618.3,2618.0,0.76387]
[1750077763367,4.58651,2618.3,2618.2,2.63274891]
[1750077763569,28.14951,2618.3,2618.2,2.63274891]
[1750077764064,28.14751,2618.3,2618.2,2.63274891]
[1750077764564,28.14751,2618.3,2618.0,3.96324891]
[1750077764565,0.76386,2618.1,2618.0,3.96324891]
[1750077764770,0.76389,2618.0,2617.9,0.6213]
[1750077765062,0.76389,2618.0,2617.9,1.38522]
[1750077765366,0.76389,2618.0,2617.9,0.76392]
[1750077766165,0.76389,2618.1,2618.0,0.76387]
[1750077766360,0.76389,2618.1,2618.0,3.39661891]
[1750077766761,0.76389,2618.1,2618.0,2.63274891]
[1750077766962,0.76389,2618.0,2617.9,4.63446891]
[1750077767268,0.76389,2618.0,2617.9,2.63274891]
[1750077767470,0.76392,2617.9,2617.8,10.37175]
[1750077767669,1.39642,2617.9,2617.8,10.37175]
[1750077768274,1.39642,2617.9,2617.8,3.97175]
[1750077768666,1.39642,2617.9,2617.8,3.2078]
[1750077769265,0.76398,2617.7,2617.6,0.00573263]
[1750077770068,3.97178,2617.7,2617.6,0.00573263]
[1750077770370,5.85158,2617.7,2617.6,0.00573263]
[1750077770773,4.58918,2617.7,2617.6,0.00573263]
[1750077771573,5.85158,2617.7,2617.6,0.00573263]
[1750077772173,4.58918,2617.7,2617.6,0.00573263]
[1750077772570,10.82318,2617.7,2617.6,0.00573263]
[1750077775875,10.0592,2617.7,2616.8,3.2078]
[1750077776173,0.76421,2616.9,2616.8,3.2078]
[1750077776379,0.76424,2616.8,2616.7,0.6429]
[1750077776569,1.43614,2616.8,2616.7,1.40717]
[1750077776968,1.43614,2616.8,2616.7,0.6429]
[1750077777169,0.76427,2616.7,2616.6,0.76428]
[1750077777477,0.76427,2616.7,2616.6,4.01112891]
[1750077778774,0.76427,2616.7,2616.6,3.24684891]
[1750077781574,0.76427,2616.7,2616.6,4.01114891]
[1750077784879,0.76424,2616.9,2616.8,0.76421]
[1750077785085,24.32124,2616.9,2616.8,3.39695891]
[1750077785381,23.557,2616.9,2616.8,3.39695891]
[1750077785676,24.32121,2616.9,2616.8,4.67765891]
[1750077786481,23.557,2616.9,2616.8,4.67765891]
[1750077786672,24.32121,2616.9,2616.8,4.67765891]
[1750077787979,23.557,2616.9,2616.6,0.68147406]
[1750077788175,0.76427,2616.7,2616.6,1.44576406]
[1750077789076,0.76427,2616.7,2616.6,1.37839]
[1750077790682,0.7643,2616.6,2616.5,0.77006263]
[1750077791980,0.7643,2616.6,2616.5,0.00573263]
[1750077791981,10.1331,2616.6,2616.5,0.00573263]
[1750077792969,10.1331,2616.6,2616.5,1.94413263]
[1750077793173,33.6891,2616.6,2616.5,1.94413263]
[1750077793373,9.3688,2616.6,2616.5,2.70846263]
[1750077793575,0.76426,2616.9,2616.8,0.76422]
[1750077793790,30.48126,2616.9,2616.8,0.76422]
[1750077794276,30.48126,2616.9,2616.8,2.05002]
[1750077796980,30.48126,2616.9,2616.8,4.68276891]
[1750077798187,24.31926,2616.9,2616.8,4.68276891]
[1750077798787,6.16669568,2617.0,2616.8,4.68276891]
[1750077798788,6.93089568,2617.0,2616.9,0.76422]
[1750077798986,30.48489568,2617.0,2616.9,1.99532]
[1750077799290,30.48489568,2617.0,2616.9,2.64372]
[1750077799491,30.48489568,2617.0,2616.9,1.8795]
[1750077800290,30.48489568,2617.0,2616.9,2.64372]
[1750077800491,6.93089568,2617.0,2616.9,2.64372]
[1750077800683,30.48489568,2617.0,2616.9,2.64372]
[1750077802491,30.48489568,2617.0,2616.9,4.16935936]
[1750077803686,30.48489568,2617.0,2616.9,3.40513936]
[1750077803892,30.48489568,2617.0,2616.9,2.17403936]
[1750077804093,30.48489568,2617.0,2616.9,0.6484]
[1750077804495,30.48489568,2617.0,2616.9,2.17403936]
[1750077804702,30.48489568,2617.0,2616.9,0.6484]
[1750077804999,30.48489568,2617.0,2616.9,1.41262]
[1750077805398,30.48489568,2617.0,2616.9,2.93825936]
[1750077806098,6.93089568,2617.0,2616.9,2.93825936]
[1750077806301,30.48289568,2617.0,2616.9,2.93825936]
[1750077807697,30.48289568,2617.0,2616.9,4.23075936]
[1750077808398,30.48289568,2617.0,2616.9,1.41262]
[1750077810200,30.48289568,2617.0,2616.8,1.52563936]
[1750077810201,0.76422,2616.9,2616.8,1.52563936]
[1750077810407,1.44272,2616.9,2616.8,1.52563936]
[1750077810602,1.44272,2616.9,2616.6,1.52563936]
[1750077810603,0.76427,2616.7,2616.6,1.52563936]
[1750077810902,24.31327,2616.7,2616.6,1.52563936]
[1750077811098,0.7643,2616.6,2616.5,0.00573263]
[1750077811293,11.3905,2616.6,2616.5,0.00573263]
[1750077814304,10.1331,2616.6,2616.5,0.07310669]
[1750077817307,11.3745,2616.6,2616.5,0.07310669]
[1750077818209,14.00724891,2616.6,2616.5,0.07310669]
[1750077820509,19.00724891,2616.6,2616.5,0.07310669]
[1750077821403,19.00724891,2616.6,2616.5,6.69e-06]
[1750077829519,14.00724891,2616.6,2616.5,6.69e-06]
[1750077830817,7.84624891,2616.6,2616.5,6.69e-06]
[1750077831024,37.55024891,2616.6,2616.5,6.69e-06]
[1750077833824,7.84624891,2616.6,2616.5,6.69e-06]
[1750077834023,37.55024891,2616.6,2616.5,6.69e-06]
[1750077834622,7.84624891,2616.6,2616.5,6.69e-06]
[1750077834822,37.54924891,2616.6,2616.5,6.69e-06]
[1750077836818,3.9721,2616.6,2616.5,6.69e-06]
[1750077837015,10.1281,2616.6,2616.5,6.69e-06]
[1750077837226,30.4663,2616.6,2616.5,1.26750669]
[1750077838420,30.4663,2616.6,2616.5,2.03183669]
[1750077839835,30.4663,2616.6,2616.5,1.26750669]
[1750077840333,30.4633,2616.6,2616.5,1.26750669]
[1750077842236,0.7643,2616.6,2616.5,1.26750669]
[1750077842436,6.9203,2616.6,2616.5,1.26750669]
[1750077842631,30.4623,2616.6,2616.5,2.03183669]
[1750077842826,30.4623,2616.6,2616.5,1.26750669]
[1750077843436,30.4623,2616.6,2616.5,2.03183669]
[1750077844033,30.4623,2616.6,2616.5,1.26750669]
[1750077844233,30.4623,2616.6,2616.5,2.03183669]
[1750077845430,30.4623,2616.6,2616.5,1.26750669]
[1750077845640,30.4623,2616.6,2616.5,2.03183669]
[1750077846033,33.09504891,2616.6,2616.5,1.26750669]
[1750077846242,33.73934891,2616.6,2616.5,6.69e-06]
[1750077846428,35.66384891,2616.6,2616.5,6.69e-06]
[1750077846934,34.41804891,2616.6,2616.5,6.69e-06]
[1750077847534,30.4593,2616.6,2616.5,6.69e-06]
[1750077849826,0.7643,2616.6,2616.5,6.69e-06]
[1750077850030,30.4593,2616.6,2616.5,6.69e-06]
[1750077850634,30.4513,2616.6,2616.5,6.69e-06]
[1750077851739,33.08404891,2616.6,2616.5,6.69e-06]
[1750077853033,30.4513,2616.6,2616.5,6.69e-06]
[1750077854640,0.7643,2616.6,2616.5,6.69e-06]
[1750077854840,30.4493,2616.6,2616.5,6.69e-06]
[1750077857345,0.7643,2616.6,2616.5,6.69e-06]
[1750077857643,30.4483,2616.6,2616.5,6.69e-06]
[1750077860243,30.4473,2616.6,2616.5,6.69e-06]
[1750077861447,0.7643,2616.6,2616.5,6.69e-06]
[1750077861644,30.4473,2616.6,2616.5,6.69e-06]
[1750077864949,31.0984,2616.6,2616.5,6.69e-06]
[1750077865449,32.3589,2616.6,2616.5,6.69e-06]
[1750077870643,34.6400307,2616.6,2616.5,6.69e-06]
[1750077871143,37.3589,2616.6,2616.5,6.69e-06]
[1750077871352,32.3589,2616.6,2616.5,6.69e-06]
[1750077872948,37.85285493,2616.6,2616.5,6.69e-06]
[1750077873452,37.84885493,2616.6,2616.5,6.69e-06]
[1750077873753,36.58835493,2616.6,2616.5,6.69e-06]
[1750077873949,34.3022,2616.6,2616.5,6.69e-06]
[1750077874153,4.6232,2616.6,2616.5,6.69e-06]
[1750077874447,10.1211,2616.6,2616.5,6.69e-06]
[1750077874653,33.6511,2616.6,2616.5,6.69e-06]
[1750077876854,3.9721,2616.6,2616.5,6.69e-06]
[1750077877055,33.6501,2616.6,2616.5,6.69e-06]
[1750077878247,3.9721,2616.6,2616.5,6.69e-06]
[1750077878448,33.6491,2616.6,2616.5,6.69e-06]
[1750077887762,35.93525493,2616.6,2616.5,6.69e-06]
[1750077887959,33.6351,2616.6,2616.5,6.69e-06]
[1750077888362,33.6341,2616.6,2616.5,6.69e-06]
[1750077888663,33.6341,2616.6,2616.5,3.3970856]
[1750077888664,10.1121,2616.6,2616.5,3.3970856]
[1750077888861,9.3478,2616.9,2616.8,0.76424]
[1750077889060,26.7298,2616.9,2616.8,0.76424]
[1750077889361,26.7298,2616.9,2616.8,5.76424]
[1750077889563,26.7298,2616.9,2616.8,7.72364]
[1750077889753,26.7298,2616.9,2616.8,9.25028592]
[1750077889954,27.49402,2616.9,2616.8,9.25028592]
[1750077890365,27.49402,2616.9,2616.8,6.9594]
[1750077890558,27.49402,2616.9,2616.8,1.9594]
[1750077890760,0.76427,2616.7,2616.6,0.6701]
[1750077891059,30.42427,2616.7,2616.6,0.6701]
[1750077896060,0.76427,2616.7,2616.6,0.6701]
[1750077896263,30.42227,2616.7,2616.6,1.9288]
[1750077896463,0.76427,2616.7,2616.6,1.9288]
[1750077896667,30.42127,2616.7,2616.6,1.9288]
[1750077897164,30.42127,2616.7,2616.6,0.6701]
[1750077897469,0.7643,2616.6,2616.5,0.64170669]
[1750077897661,6.60484891,2616.6,2616.5,6.69e-06]
[1750077898171,7.26944891,2616.6,2616.5,6.69e-06]
[1750077899065,3.9721,2616.6,2616.5,6.69e-06]
[1750077899266,33.6291,2616.6,2616.5,1.43623669]
[1750077899772,33.6291,2616.6,2616.5,0.67190669]
[1750077900469,33.6291,2616.6,2616.5,2.63180669]
[1750077901168,36.26184891,2616.6,2616.5,2.63180669]
[1750077901374,36.26184891,2616.6,2616.5,6.69e-06]
[1750077904459,38.54800384,2616.6,2616.5,6.69e-06]
[1750077904664,40.50700384,2616.6,2616.5,6.69e-06]
[1750077905264,34.2787,2616.6,2616.5,6.69e-06]
[1750077906073,4.6247,2616.6,2616.5,6.69e-06]
[1750077906366,33.6251,2616.6,2616.5,6.69e-06]
[1750077906574,3.9721,2616.6,2616.5,6.69e-06]
[1750077906775,33.6251,2616.6,2616.5,1.29670669]
[1750077906979,33.6251,2616.6,2616.5,1.97050669]
[1750077908969,33.6251,2616.6,2616.5,6.69e-06]
[1750077910576,33.6241,2616.6,2616.5,6.69e-06]
[1750077911367,36.25684891,2616.6,2616.5,6.69e-06]
[1750077913880,6.60484891,2616.6,2616.5,6.69e-06]
[1750077914079,36.24684891,2616.6,2616.5,6.69e-06]
[1750077917074,38.5328947,2616.6,2616.5,6.69e-06]
[1750077917281,39.8884947,2616.6,2616.5,6.69e-06]
[1750077918987,37.60244891,2616.6,2616.5,6.69e-06]
[1750077919684,36.24684891,2616.6,2616.5,6.69e-06]
[1750077919882,6.60484891,2616.6,2616.5,6.69e-06]
[1750077920182,3.9721,2616.6,2616.5,6.69e-06]
[1750077920484,33.6141,2616.6,2616.5,6.69e-06]
[1750077920685,33.6141,2616.6,2616.5,2.60410669]
[1750077921484,0.76429,2616.7,2616.6,0.76427]
[1750077921779,24.27229,2616.7,2616.6,1.2549]
[1750077921985,27.48009,2616.7,2616.6,1.2549]
[1750077923494,30.40329,2616.7,2616.6,1.2549]
[1750077924979,33.61109,2616.7,2616.6,1.2549]
[1750077931582,33.61109,2616.7,2616.6,2.0192]
[1750077931782,3.2078,2616.7,2616.6,7.0192]
[1750077932076,32.94533174,2616.7,2616.6,1.2549]
[1750077932282,0.7643,2616.6,2616.5,1.34920669]
[1750077933286,6.8963,2616.6,2616.5,1.34920669]
[1750077935488,3.2078,2616.7,2616.6,0.7643]
[1750077935693,3.2078,2616.7,2616.6,2.0547]
[1750077935893,26.7088,2616.7,2616.6,8.58032252]
[1750077936190,26.7088,2616.7,2616.6,8.58000785]
[1750077936692,0.76424,2616.9,2616.6,9.4982]
[1750077936894,3.97769568,2617.0,2616.9,0.76421]
[1750077937094,0.76424,2616.9,2616.8,0.76424]
[1750077937289,0.76424,2616.9,2616.8,2.11774]
[1750077938989,27.47870568,2617.0,2616.9,0.76421]
[1750077939192,3.97770568,2617.0,2616.9,2.02031]
[1750077939392,27.47670568,2617.0,2616.9,2.02031]
[1750077939892,3.97770568,2617.0,2616.9,2.02031]
[1750077940089,27.47670568,2617.0,2616.9,2.02031]
[1750077940289,26.71249568,2617.0,2616.9,2.02031]
[1750077940492,26.71249568,2617.0,2616.9,2.63631]
[1750077941892,3.21349568,2617.0,2616.9,2.63631]
[1750077942199,26.71149568,2617.0,2616.9,2.63631]
[1750077942395,0.6487,2617.5,2617.3,0.76407]
[1750077942597,6.132,2617.4,2617.3,0.76407]
[1750077942803,29.629,2617.4,2617.3,3.39172949]
[1750077943002,3.2078,2617.6,2617.5,0.76404]
[1750077943303,27.46881,2617.6,2617.5,0.76404]
[1750077944195,31.24251949,2617.6,2617.0,2.17577281]
[1750077944394,0.76416,2617.2,2617.1,0.76416]
[1750077944594,24.25816,2617.2,2617.1,0.76416]
[1750077949207,0.76416,2617.2,2617.1,0.76416]
[1750077949400,30.38016,2617.2,2617.1,0.76416]
[1750077949902,31.04066,2617.2,2617.1,0.76416]
[1750077950505,31.04066,2617.2,2617.1,0.83153406]
[1750077953007,31.04066,2617.2,2617.1,0.06737406]
[1750077953207,31.04066,2617.2,2617.1,0.83153406]
[1750077953406,31.04066,2617.2,2617.1,0.06737406]
[1750077953601,31.04066,2617.2,2617.1,0.06167837]
[1750077958700,35.2765,2617.2,2616.3,0.00573263]
[1750077959009,0.76436,2616.4,2616.3,0.00573263]
[1750077959209,30.37936,2616.4,2616.3,0.00573263]
[1750077964811,30.37936,2616.4,2616.3,0.07310669]
[1750077967719,30.37936,2616.4,2616.3,6.69e-06]
[1750077968415,35.37936,2616.4,2616.3,6.69e-06]
[1750077968917,38.01105998,2616.4,2616.3,6.69e-06]
[1750077969518,34.36835998,2616.4,2616.3,6.69e-06]
[1750077970018,4.75335998,2616.4,2616.3,6.69e-06]
[1750077970318,34.37235998,2616.4,2616.3,6.69e-06]
[1750077970712,2.12166,2616.4,2616.3,6.69e-06]
[1750077971031,30.38336,2616.4,2616.3,6.69e-06]
[1750077971212,33.01505998,2616.4,2616.3,6.69e-06]
[1750077975115,33.01405998,2616.4,2616.3,6.69e-06]
[1750077978822,3.39605998,2616.4,2616.3,6.69e-06]
[1750077979025,33.00805998,2616.4,2616.3,6.69e-06]
[1750077981919,33.00705998,2616.4,2616.3,6.69e-06]
[1750077983219,6.88536,2616.4,2616.3,6.69e-06]
[1750077983422,30.37536,2616.4,2616.3,6.69e-06]
[1750077984015,30.37536,2616.4,2616.3,1.35790669]
[1750077985831,33.00605998,2616.4,2616.3,1.35790669]
[1750077988125,36.21385998,2616.4,2616.3,1.35790669]
[1750077988323,3.97216,2616.4,2616.3,1.35790669]
[1750077988523,33.58016,2616.4,2616.3,1.35790669]
[1750077992128,10.09316,2616.4,2616.3,1.35790669]
[1750077992431,33.57916,2616.4,2616.3,1.35790669]
[1750077992632,0.76434,2616.6,2616.5,0.76431]
[1750077992834,3.97209,2616.7,2616.6,0.7643]
[1750077993037,27.45709,2616.7,2616.6,2.6192]
[1750077993227,27.45709,2616.7,2616.6,3.2688]
[1750077993722,24.24929,2616.7,2616.6,2.5045]
[1750077994234,0.76436,2616.4,2616.3,1.5252795]
[1750077994428,24.24936,2616.4,2616.3,0.64960669]
[1750077994629,24.24936,2616.4,2616.3,1.98480669]
[1750077998538,24.24936,2616.4,2616.3,2.74919669]
[1750077998727,24.24936,2616.4,2616.3,1.98480669]
[1750077999337,24.24936,2616.4,2616.3,2.74919669]
[1750078000038,0.76436,2616.4,2616.3,2.74919669]
[1750078000238,30.36536,2616.4,2616.3,2.74919669]
[1750078000436,0.76436,2616.5,2616.4,0.76436]
[1750078000739,30.36536,2616.5,2616.4,1.315]
[1750078000936,0.76431,2616.7,2616.6,0.76428]
[1750078001235,30.36431,2616.7,2616.6,0.76428]
[1750078001427,6.88431,2616.7,2616.6,0.76428]
[1750078001629,30.36431,2616.7,2616.6,0.76428]
[1750078002027,0.7643,2616.6,2616.5,2.07931]
[1750078002738,0.76427,2616.8,2616.7,0.76427]
[1750078002935,24.24427,2616.8,2616.7,0.76427]
[1750078003235,0.76423,2616.9,2616.8,0.76424]
[1750078003442,24.24423,2616.9,2616.8,0.76424]
[1750078003633,0.76424,2616.8,2616.7,3.38835]
[1750078003828,0.76424,2616.8,2616.7,3.38837]
[1750078004034,0.76424,2616.8,2616.7,2.6241]
[1750078004233,0.76423,2616.9,2616.8,0.76424]
[1750078004537,24.24323,2616.9,2616.8,2.11794]
[1750078004729,24.24221,2616.9,2616.8,2.11794]
[1750078004931,24.24221,2616.9,2616.8,4.74963998]
[1750078005131,23.478,2616.9,2616.8,4.74963998]
[1750078005433,6.114,2617.0,2616.9,0.76421]
[1750078005633,30.35618,2617.0,2616.9,2.11791]
[1750078006239,29.592,2617.0,2616.9,2.11791]
[1750078007334,6.114,2617.1,2617.0,0.76418]
[1750078007537,29.59,2617.1,2617.0,2.01588]
[1750078007938,30.35416,2617.1,2617.0,2.01588]
[1750078008132,0.76416,2617.1,2617.0,2.01588]
[1750078008338,0.76414,2617.2,2617.1,0.76411]
[1750078008538,30.35314,2617.2,2617.1,2.65971]
[1750078008739,6.87814,2617.2,2617.1,2.65971]
[1750078008943,30.35314,2617.2,2617.1,2.65971]
[1750078011948,6.87814,2617.2,2617.1,2.65971]
[1750078012243,29.586,2617.2,2617.1,2.65971]
[1750078013040,6.87711,2617.3,2617.2,0.76413]
[1750078013241,6.87711,2617.3,2617.2,2.73533]
[1750078013242,6.113,2617.3,2617.2,2.73533]
[1750078013441,30.3481,2617.3,2617.2,2.73533]
[1750078013846,3.97189,2617.4,2617.3,0.7641]
[1750078014140,3.2078,2617.7,2617.6,0.76398]
[1750078014339,32.7918,2617.7,2617.6,0.76398]
[1750078015246,32.7908,2617.7,2617.6,0.76398]
[1750078015446,33.55482,2617.7,2617.6,0.76398]
[1750078016047,33.55482,2617.7,2617.6,1.98758]
[1750078016440,10.08482,2617.7,2617.6,1.98758]
[1750078016640,33.55382,2617.7,2617.6,1.98758]
[1750078017241,33.55278,2617.7,2617.6,1.98758]
[1750078017644,32.7888,2617.7,2617.6,1.98758]
[1750078017846,33.55278,2617.7,2617.6,1.98758]
[1750078018849,27.43878,2617.7,2617.6,1.98758]
[1750078020046,0.7641,2617.3,2617.1,0.76415]
[1750078020352,24.22916,2617.2,2617.1,0.76415]
[1750078020541,24.89906,2617.2,2617.1,0.76415]
[1750078020743,0.76418,2617.0,2616.9,1.47747406]
[1750078021243,24.22918,2617.0,2616.9,1.47747406]
[1750078022449,23.465,2617.0,2616.9,2.80417406]
[1750078022653,24.22918,2617.0,2616.9,2.80417406]
[1750078022851,23.465,2617.0,2616.9,2.80417406]
[1750078023051,24.22918,2617.0,2616.9,2.80417406]
[1750078023954,23.465,2617.0,2616.9,2.80417406]
[1750078025555,24.22918,2617.0,2616.9,1.47747406]
[1750078025963,24.22918,2617.0,2616.9,0.06737406]
[1750078026158,24.22918,2617.0,2616.9,0.83158406]
[1750078028858,24.22918,2617.0,2616.9,0.06737406]
[1750078029355,28.05348,2617.0,2616.9,0.06737406]
[1750078029551,29.34618,2617.0,2616.9,0.06737406]
[1750078032957,36.97787998,2617.0,2616.9,4.06e-06]
[1750078033161,36.97787998,2617.0,2616.2,0.76441]
[1750078033162,0.76439,2616.3,2616.2,0.76441]
[1750078033358,24.22739,2616.3,2616.2,0.76441]
[1750078033551,3.2078,2616.4,2616.3,0.76439]
[1750078033752,23.463,2616.4,2616.3,0.76439]
[1750078034152,23.463,2616.4,2616.3,1.99829]
[1750078035363,24.22736,2616.4,2616.3,1.99829]
[1750078035858,0.00573263,2616.6,2616.3,1.99829]
[1750078035859,0.00573263,2616.6,2616.3,6.2339]
[1750078036064,0.00573263,2616.6,2616.5,0.76433]
[1750078036263,0.00573263,2616.6,2616.5,3.52350281]
[1750078036561,0.666,2617.0,2616.9,0.76421]
[1750078036762,23.463,2617.0,2616.9,0.76421]
[1750078036956,23.463,2617.0,2616.9,0.83158406]
[1750078037161,23.463,2617.0,2616.9,2.07458406]
[1750078037867,24.22718,2617.0,2616.9,2.07458406]
[1750078038070,3.87953263,2617.2,2616.9,1.31037406]
[1750078038269,3.21353263,2617.2,2617.1,0.76416]
[1750078038463,27.44066263,2617.2,2617.1,0.76416]
[1750078038662,3.97766263,2617.2,2617.1,2.00716]
[1750078038861,27.44066263,2617.2,2617.1,2.00716]
[1750078039070,26.67653263,2617.2,2617.1,2.00716]
[1750078039468,23.46873263,2617.2,2617.1,2.00716]
[1750078039670,0.00573263,2617.2,2617.1,2.00716]
[1750078039870,0.00573263,2617.2,2617.1,2.65436]
[1750078040072,3.2078,2617.5,2617.4,0.76407]
[1750078040271,0.76401,2617.7,2617.6,0.76398]
[1750078040473,24.22501,2617.7,2617.6,0.76398]
[1750078041885,0.76401,2617.7,2617.6,0.76398]
[1750078042185,24.22501,2617.7,2617.6,0.76398]
[1750078042376,4.60867,2617.8,2617.7,0.76398]
[1750078042582,3.97177,2617.8,2617.7,0.76398]
[1750078042782,27.43177,2617.8,2617.7,0.76398]
[1750078043290,27.42975,2617.8,2617.7,0.76398]
[1750078043489,3.2078,2617.8,2617.7,0.76398]
[1750078043680,3.2078,2617.8,2617.7,2.11918]
[1750078044386,24.1047,2617.9,2617.8,0.76395]
[1750078044589,23.458,2617.9,2617.8,2.11915]
[1750078044779,6.106,2618.0,2617.9,0.76392]
[1750078044980,30.32791,2618.0,2617.9,0.76392]
[1750078045791,30.32791,2618.0,2617.8,1.3552]
[1750078045792,0.76392,2617.9,2617.8,1.3552]
[1750078046090,0.76395,2617.8,2617.7,0.76396]
[1750078046284,0.76394,2617.9,2617.8,0.76392]
[1750078047082,1.90981,2617.9,2617.5,0.65]
[1750078047390,0.76404,2617.5,2617.4,0.00573263]
[1750078047581,32.95673998,2617.5,2617.4,0.00573263]
[1750078047888,34.94243998,2617.5,2617.4,0.00573263]
[1750078048085,0.76416,2617.1,2617.0,0.76417]
[1750078048280,24.21916,2617.1,2617.0,0.76417]
[1750078049085,5.11807,2617.3,2617.1,0.76413]
[1750078049086,0.76415,2617.2,2617.1,0.76413]
[1750078049290,24.21913,2617.2,2617.1,0.76416]
[1750078050084,23.455,2617.2,2617.1,0.76416]
[1750078051294,23.455,2617.2,2617.1,2.02526]
[1750078051791,0.00573263,2617.3,2617.2,0.76413]
[1750078051993,23.45973263,2617.3,2617.2,0.76413]
[1750078052688,3.2078,2617.6,2617.5,0.76404]
[1750078053491,6.86996,2617.8,2617.7,0.76398]
[1750078054293,6.106,2617.8,2617.7,0.76398]
[1750078054586,6.86995,2617.8,2617.7,0.76398]
[1750078054979,24.85515,2617.9,2617.8,0.76395]
[1750078056996,24.0912,2617.9,2617.5,2.4953]
[1750078057192,0.76401,2617.7,2617.6,0.76398]
[1750078057692,0.76401,2617.7,2617.6,7.16398]
[1750078058088,0.76401,2617.7,2617.6,0.76398]
[1750078058293,1.8678,2617.9,2617.8,0.76395]
[1750078058294,24.85316,2617.9,2617.8,0.76395]
[1750078059288,24.85312,2617.9,2617.8,0.76395]
[1750078064596,0.6382,2617.9,2617.8,0.76395]
[1750078064793,24.0862,2617.9,2617.8,0.76395]
[1750078065296,24.85012,2617.9,2617.8,0.76395]
[1750078065496,24.0862,2617.9,2617.8,0.76395]
[1750078065700,0.6382,2617.9,2617.8,0.76395]
[1750078065900,24.0862,2617.9,2617.8,0.76395]
[1750078066099,24.0862,2617.9,2617.8,2.11345]
[1750078066604,3.97172,2618.0,2617.9,0.76392]
[1750078066605,3.2078,2618.0,2617.9,0.76392]
[1750078066903,26.6558,2618.0,2617.9,0.76392]
[1750078067096,3.2078,2618.0,2617.9,1.37632]
[1750078067893,3.2078,2618.0,2617.9,2.71502]
[1750078068294,24.85305,2618.2,2618.1,0.76386]
[1750078069396,24.85305,2618.2,2617.9,5.92282]
[1750078069397,0.76389,2618.1,2618.0,0.76387]
[1750078070903,24.85305,2618.2,2618.1,0.76386]
[1750078071702,24.85105,2618.2,2618.1,0.76386]
[1750078071899,0.6422,2618.2,2618.1,0.76386]
[1750078072093,23.445,2618.3,2618.2,0.76383]
[1750078072800,6.1,2618.4,2618.3,0.76381]
[1750078073001,0.76386,2618.3,2618.2,0.76381]
[1750078074601,6.8638,2618.4,2618.3,0.76381]
[1750078074802,24.2078,2618.4,2618.3,0.76381]
[1750078075206,24.2078,2618.4,2618.3,1.42221]
[1750078075795,24.2078,2618.4,2618.3,0.76381]
[1750078077399,0.76381,2618.3,2618.2,0.6563]